[Event "Titled Tuesday Blitz January 10 Early 2023"]
[White "Bazarov, Konstantin"]
[Black "Stribuk, Artiom"]
[WhiteFideId "4137000"]
[BlackFideId "13515659"]
[WhiteElo "2235"]
[BlackElo "2378"]
[Result "0-1"]
[Round "06"]
[TimeControl "180+2"]
[Date "2023.01.10"]
[WhiteClock "0:00:01"]
[BlackClock "0:00:12"]

1. d4 {[%clk 0:03:00]}  Nf6 {[%clk 0:03:00]} 2. c4 {[%clk 0:03:00]}  c5 {[%clk 0:03:00]} 3. d5 {[%clk 0:02:59]}  b5 {[%clk 0:03:01]} 4. cxb5 {[%clk 0:02:59]}  a6 {[%clk 0:03:01]} 5. e3 {[%clk 0:02:59]}  g6 {[%clk 0:02:59]} 6. Nc3 {[%clk 0:02:58]}  Bg7 {[%clk 0:02:58]} 7. Nf3 {[%clk 0:02:59]}  Bb7 {[%clk 0:02:57]} 8. a4 {[%clk 0:02:55]}  O-O {[%clk 0:02:56]} 9. Be2 {[%clk 0:02:47]}  axb5 {[%clk 0:02:26]} 10. Bxb5 {[%clk 0:02:42]}  Na6 {[%clk 0:02:20]} 11. O-O {[%clk 0:02:38]}  Nb4 {[%clk 0:02:16]} 12. e4 {[%clk 0:02:33]}  e6 {[%clk 0:02:16]} 13. dxe6 {[%clk 0:02:19]}  dxe6 {[%clk 0:02:12]} 14. Qe2 {[%clk 0:02:14]}  Qe7 {[%clk 0:01:55]} 15. Bg5 {[%clk 0:02:09]}  h6 {[%clk 0:01:55]} 16. Bh4 {[%clk 0:02:08]}  g5 {[%clk 0:01:56]} 17. Bg3 {[%clk 0:02:08]}  Nh5 {[%clk 0:01:56]} 18. Rfd1 {[%clk 0:02:03]}  Nxg3 {[%clk 0:01:49]} 19. hxg3 {[%clk 0:02:02]}  Nc6 {[%clk 0:01:36]} 20. Qf1 {[%clk 0:01:21]}  Nd4 {[%clk 0:01:32]} 21. Bc4 {[%clk 0:01:12]}  Bc6 {[%clk 0:01:06]} 22. a5 {[%clk 0:01:04]}  Rfb8 {[%clk 0:01:05]} 23. Ra2 {[%clk 0:01:03]}  Qb7 {[%clk 0:00:47]} 24. a6 {[%clk 0:01:00]}  Qb4 {[%clk 0:00:48]} 25. Rda1 {[%clk 0:00:51]}  Ra7 {[%clk 0:00:36]} 26. Qd3 {[%clk 0:00:44]}  Qb6 {[%clk 0:00:30]} 27. Nxd4 {[%clk 0:00:38]}  Bxd4 {[%clk 0:00:28]} 28. Ne2 {[%clk 0:00:35]}  Be5 {[%clk 0:00:24]} 29. Rc1 {[%clk 0:00:30]}  Rd7 {[%clk 0:00:21]} 30. Qe3 {[%clk 0:00:26]}  Rbd8 {[%clk 0:00:20]} 31. Raa1 {[%clk 0:00:22]}  Rd2 {[%clk 0:00:18]} 32. a7 {[%clk 0:00:19]}  Ba8 {[%clk 0:00:17]} 33. Rcb1 {[%clk 0:00:16]}  Rxb2 {[%clk 0:00:17]} 34. Rxb2 {[%clk 0:00:13]}  Qxb2 {[%clk 0:00:18]} 35. Rf1 {[%clk 0:00:11]}  Qb6 {[%clk 0:00:15]} 36. Qa3 {[%clk 0:00:10]}  Bxe4 {[%clk 0:00:15]} 37. Nc3 {[%clk 0:00:10]}  Bxc3 {[%clk 0:00:14]} 38. Qxc3 {[%clk 0:00:09]}  Ra8 {[%clk 0:00:11]} 39. Qf6 {[%clk 0:00:07]}  Bg6 {[%clk 0:00:12]} 40. Be2 {[%clk 0:00:05]}  Qxa7 {[%clk 0:00:10]} 41. Rd1 {[%clk 0:00:05]}  Qc7 {[%clk 0:00:10]} 42. Rd2 {[%clk 0:00:05]}  Rf8 {[%clk 0:00:09]} 43. Kh2 {[%clk 0:00:05]}  c4 {[%clk 0:00:10]} 44. f4 {[%clk 0:00:05]}  c3 {[%clk 0:00:09]} 45. Rd1 {[%clk 0:00:06]}  gxf4 {[%clk 0:00:09]} 46. gxf4 {[%clk 0:00:05]}  c2 {[%clk 0:00:09]} 47. Rc1 {[%clk 0:00:05]}  Qd8 {[%clk 0:00:10]} 48. Qb2 {[%clk 0:00:04]}  Qh4+ {[%clk 0:00:10]} 49. Kg1 {[%clk 0:00:03]}  Qxf4 {[%clk 0:00:10]} 50. Bf3 {[%clk 0:00:03]}  Rd8 {[%clk 0:00:10]} 51. Kh1 {[%clk 0:00:02]}  Rb8 {[%clk 0:00:10]} 52. Qa1 {[%clk 0:00:02]}  Qxc1+ {[%clk 0:00:10]} 53. Qxc1 {[%clk 0:00:01]}  Rb1 {[%clk 0:00:11]} 54. Qxb1 {[%clk 0:00:01]}  cxb1=Q+ {[%clk 0:00:12]} 0-1


[Site "https://www.chess.com"]

[Event "Titled Tuesday Blitz January 10 Early 2023"]
[White "Jovic, Stanoje"]
[Black "Demchenko, Anton"]
[WhiteFideId "905020"]
[BlackFideId "4160258"]
[WhiteElo "2075"]
[BlackElo "2623"]
[Result "0-1"]
[Round "06"]
[TimeControl "180+2"]
[Date "2023.01.10"]
[WhiteClock "0:00:01"]
[BlackClock "0:00:35"]

1. c4 {[%clk 0:03:00]}  d6 {[%clk 0:02:59]} 2. g3 {[%clk 0:03:00]}  e5 {[%clk 0:02:59]} 3. Bg2 {[%clk 0:03:00]}  Be7 {[%clk 0:02:57]} 4. Nc3 {[%clk 0:03:00]}  f5 {[%clk 0:02:57]} 5. d3 {[%clk 0:02:59]}  Nf6 {[%clk 0:02:56]} 6. Nf3 {[%clk 0:02:59]}  O-O {[%clk 0:02:56]} 7. O-O {[%clk 0:02:59]}  h6 {[%clk 0:02:56]} 8. Rb1 {[%clk 0:02:59]}  Be6 {[%clk 0:02:56]} 9. b4 {[%clk 0:02:58]}  a6 {[%clk 0:02:56]} 10. a4 {[%clk 0:02:58]}  Nbd7 {[%clk 0:02:55]} 11. a5 {[%clk 0:02:56]}  c6 {[%clk 0:02:53]} 12. Na4 {[%clk 0:02:29]}  Qe8 {[%clk 0:02:50]} 13. e3 {[%clk 0:02:10]}  Qh5 {[%clk 0:02:44]} 14. Bb2 {[%clk 0:02:05]}  Rae8 {[%clk 0:02:37]} 15. c5 {[%clk 0:02:02]}  f4 {[%clk 0:02:24]} 16. cxd6 {[%clk 0:01:58]}  Bxd6 {[%clk 0:02:22]} 17. Nc5 {[%clk 0:01:53]}  Bxc5 {[%clk 0:01:59]} 18. bxc5 {[%clk 0:01:49]}  Bg4 {[%clk 0:01:56]} 19. Qb3+ {[%clk 0:01:28]}  Kh8 {[%clk 0:01:57]} 20. Nxe5 {[%clk 0:01:07]}  Nxe5 {[%clk 0:01:51]} 21. Bxe5 {[%clk 0:01:01]}  Rxe5 {[%clk 0:01:44]} 22. exf4 {[%clk 0:00:55]}  Rxc5 {[%clk 0:01:42]} 23. Qxb7 {[%clk 0:00:52]}  Bh3 {[%clk 0:01:35]} 24. Qb4 {[%clk 0:00:36]}  Bxg2 {[%clk 0:01:32]} 25. Kxg2 {[%clk 0:00:32]}  Rd8 {[%clk 0:01:30]} 26. Qb6 {[%clk 0:00:16]}  Qd5+ {[%clk 0:01:28]} 27. Kg1 {[%clk 0:00:15]}  Rxa5 {[%clk 0:01:29]} 28. Rfe1 {[%clk 0:00:11]}  Rb5 {[%clk 0:01:23]} 29. Qxa6 {[%clk 0:00:10]}  Qxd3 {[%clk 0:01:20]} 30. Rxb5 {[%clk 0:00:08]}  cxb5 {[%clk 0:01:21]} 31. Qb6 {[%clk 0:00:07]}  Rc8 {[%clk 0:01:07]} 32. h3 {[%clk 0:00:06]}  Kh7 {[%clk 0:01:04]} 33. Qe6 {[%clk 0:00:06]}  Rc2 {[%clk 0:01:00]} 34. g4 {[%clk 0:00:04]}  Qd2 {[%clk 0:00:44]} 35. Qf5+ {[%clk 0:00:03]}  Kh8 {[%clk 0:00:44]} 36. Rf1 {[%clk 0:00:01]}  Rc1 {[%clk 0:00:35]} 0-1


[Site "https://www.chess.com"]

[Event "Titled Tuesday Blitz January 10 Early 2023"]
[White "Dvirnyy, Danyyil"]
[Black "Kosteniuk, Alexandra"]
[WhiteFideId "817570"]
[BlackFideId "4128125"]
[WhiteElo "2541"]
[BlackElo "2535"]
[Result "0-1"]
[Round "06"]
[TimeControl "180+2"]
[Date "2023.01.10"]
[WhiteClock "0:00:04"]
[BlackClock "0:00:05"]

1. e4 {[%clk 0:03:00]}  e5 {[%clk 0:02:54]} 2. Nf3 {[%clk 0:03:01]}  Nf6 {[%clk 0:02:54]} 3. Nc3 {[%clk 0:02:59]}  Nc6 {[%clk 0:02:53]} 4. Bb5 {[%clk 0:02:59]}  Nd4 {[%clk 0:02:53]} 5. O-O {[%clk 0:02:57]}  c6 {[%clk 0:02:42]} 6. Bc4 {[%clk 0:02:54]}  Nxf3+ {[%clk 0:02:34]} 7. Qxf3 {[%clk 0:02:54]}  d6 {[%clk 0:02:34]} 8. h3 {[%clk 0:02:45]}  Be7 {[%clk 0:02:32]} 9. d3 {[%clk 0:02:44]}  h6 {[%clk 0:02:30]} 10. Bb3 {[%clk 0:02:36]}  g5 {[%clk 0:02:29]} 11. Qd1 {[%clk 0:02:16]}  g4 {[%clk 0:02:23]} 12. hxg4 {[%clk 0:02:12]}  Bxg4 {[%clk 0:02:20]} 13. f3 {[%clk 0:02:10]}  Qb6+ {[%clk 0:02:15]} 14. d4 {[%clk 0:02:07]}  Qxd4+ {[%clk 0:01:37]} 15. Qxd4 {[%clk 0:02:06]}  exd4 {[%clk 0:01:38]} 16. Ne2 {[%clk 0:02:06]}  Be6 {[%clk 0:01:37]} 17. Nxd4 {[%clk 0:02:06]}  Kd7 {[%clk 0:01:26]} 18. Bf4 {[%clk 0:01:54]}  Rag8 {[%clk 0:01:25]} 19. Rad1 {[%clk 0:01:48]}  Nh5 {[%clk 0:01:07]} 20. Nxe6 {[%clk 0:01:22]}  fxe6 {[%clk 0:01:05]} 21. Bxd6 {[%clk 0:01:22]}  Bxd6 {[%clk 0:01:05]} 22. e5 {[%clk 0:01:23]}  Nf4 {[%clk 0:01:06]} 23. Rxd6+ {[%clk 0:01:23]}  Ke7 {[%clk 0:01:06]} 24. Rd2 {[%clk 0:01:24]}  Rg5 {[%clk 0:00:53]} 25. Rfd1 {[%clk 0:01:07]}  Rxe5 {[%clk 0:00:53]} 26. g3 {[%clk 0:00:35]}  Nd5 {[%clk 0:00:38]} 27. f4 {[%clk 0:00:33]}  Re3 {[%clk 0:00:37]} 28. Kf2 {[%clk 0:00:32]}  Re4 {[%clk 0:00:33]} 29. c4 {[%clk 0:00:27]}  Nf6 {[%clk 0:00:24]} 30. Rd4 {[%clk 0:00:23]}  Rxd4 {[%clk 0:00:23]} 31. Rxd4 {[%clk 0:00:24]}  c5 {[%clk 0:00:23]} 32. Rd1 {[%clk 0:00:22]}  h5 {[%clk 0:00:23]} 33. Kf3 {[%clk 0:00:17]}  Rg8 {[%clk 0:00:18]} 34. Rg1 {[%clk 0:00:15]}  Rd8 {[%clk 0:00:18]} 35. Rd1 {[%clk 0:00:12]}  Rg8 {[%clk 0:00:17]} 36. Bc2 {[%clk 0:00:10]}  b6 {[%clk 0:00:16]} 37. Rd2 {[%clk 0:00:08]}  Rh8 {[%clk 0:00:14]} 38. Rh2 {[%clk 0:00:08]}  Kf7 {[%clk 0:00:12]} 39. Bd1 {[%clk 0:00:05]}  Rd8 {[%clk 0:00:11]} 40. Be2 {[%clk 0:00:05]}  Rd2 {[%clk 0:00:10]} 41. Rh1 {[%clk 0:00:02]}  Rxb2 {[%clk 0:00:10]} 42. a4 {[%clk 0:00:02]}  Rb3+ {[%clk 0:00:09]} 43. Kg2 {[%clk 0:00:02]}  Kg6 {[%clk 0:00:08]} 44. Rd1 {[%clk 0:00:02]}  Rb2 {[%clk 0:00:07]} 45. Kf3 {[%clk 0:00:02]}  Rb3+ {[%clk 0:00:07]} 46. Rd3 {[%clk 0:00:02]}  Rb4 {[%clk 0:00:06]} 47. Rd6 {[%clk 0:00:01]}  Kf7 {[%clk 0:00:06]} 48. Rc6 {[%clk 0:00:02]}  Ne8 {[%clk 0:00:04]} 49. Rc8 {[%clk 0:00:02]}  Rxa4 {[%clk 0:00:03]} 50. Rb8 {[%clk 0:00:02]}  Ra3+ {[%clk 0:00:04]} 51. Kf2 {[%clk 0:00:02]}  Nd6 {[%clk 0:00:04]} 52. Bxh5+ {[%clk 0:00:03]}  Ke7 {[%clk 0:00:04]} 53. Bf3 {[%clk 0:00:02]}  Nxc4 {[%clk 0:00:04]} 54. g4 {[%clk 0:00:03]}  Ra2+ {[%clk 0:00:04]} 55. Kg3 {[%clk 0:00:03]}  Ne3 {[%clk 0:00:04]} 56. g5 {[%clk 0:00:03]}  Nf5+ {[%clk 0:00:04]} 57. Kh3 {[%clk 0:00:03]}  Ra1 {[%clk 0:00:04]} 58. Rb7+ {[%clk 0:00:02]}  Kd6 {[%clk 0:00:05]} 59. g6 {[%clk 0:00:03]}  Rg1 {[%clk 0:00:04]} 60. Bg2 {[%clk 0:00:03]}  Ne3 {[%clk 0:00:04]} 61. Be4 {[%clk 0:00:01]}  Nf5 {[%clk 0:00:03]} 62. Bxf5 {[%clk 0:00:02]}  exf5 {[%clk 0:00:03]} 63. g7 {[%clk 0:00:03]}  c4 {[%clk 0:00:03]} 64. Rxa7 {[%clk 0:00:02]}  b5 {[%clk 0:00:03]} 65. Rb7 {[%clk 0:00:02]}  Kc5 {[%clk 0:00:03]} 66. Kh2 {[%clk 0:00:02]}  Rg4 {[%clk 0:00:02]} 67. Rf7 {[%clk 0:00:02]}  Kd4 {[%clk 0:00:02]} 68. Rxf5 {[%clk 0:00:02]}  Rxg7 {[%clk 0:00:02]} 69. Rxb5 {[%clk 0:00:03]}  c3 {[%clk 0:00:03]} 70. Rb1 {[%clk 0:00:01]}  c2 {[%clk 0:00:03]} 71. Rc1 {[%clk 0:00:01]}  Kd3 {[%clk 0:00:04]} 72. Kh3 {[%clk 0:00:02]}  Kd2 {[%clk 0:00:04]} 73. Rxc2+ {[%clk 0:00:03]}  Kxc2 {[%clk 0:00:04]} 74. Kh4 {[%clk 0:00:03]}  Kd3 {[%clk 0:00:05]} 75. f5 {[%clk 0:00:04]}  Ke4 {[%clk 0:00:05]} 76. f6 {[%clk 0:00:04]}  Rg1 {[%clk 0:00:05]} 0-1


[Site "https://www.chess.com"]

[Event "Titled Tuesday Blitz January 10 Early 2023"]
[White "Molina, Roberto Junio Brito"]
[Black "Sadubayev, Airat"]
[WhiteFideId "2109450"]
[BlackFideId "13713264"]
[WhiteElo "2403"]
[BlackElo "2320"]
[Result "1-0"]
[Round "06"]
[TimeControl "180+2"]
[Date "2023.01.10"]
[WhiteClock "0:00:31"]
[BlackClock "0:00:04"]

1. d4 {[%clk 0:02:57]}  d5 {[%clk 0:02:59]} 2. c4 {[%clk 0:02:57]}  c6 {[%clk 0:02:59]} 3. Nf3 {[%clk 0:02:56]}  Nf6 {[%clk 0:03:00]} 4. Nc3 {[%clk 0:02:56]}  e6 {[%clk 0:03:00]} 5. Bg5 {[%clk 0:02:56]}  Nbd7 {[%clk 0:02:57]} 6. e3 {[%clk 0:02:56]}  Qa5 {[%clk 0:02:55]} 7. Nd2 {[%clk 0:02:54]}  dxc4 {[%clk 0:02:54]} 8. Bxf6 {[%clk 0:02:53]}  Nxf6 {[%clk 0:02:55]} 9. Nxc4 {[%clk 0:02:51]}  Qc7 {[%clk 0:02:55]} 10. Rc1 {[%clk 0:02:50]}  Bd6 {[%clk 0:02:54]} 11. Be2 {[%clk 0:02:47]}  e5 {[%clk 0:02:50]} 12. d5 {[%clk 0:02:37]}  Nxd5 {[%clk 0:02:37]} 13. Nxd5 {[%clk 0:02:32]}  cxd5 {[%clk 0:02:37]} 14. Qxd5 {[%clk 0:02:29]}  Bb4+ {[%clk 0:02:31]} 15. Kf1 {[%clk 0:02:24]}  O-O {[%clk 0:02:26]} 16. Qxe5 {[%clk 0:02:20]}  Qxe5 {[%clk 0:02:14]} 17. Nxe5 {[%clk 0:02:21]}  Be6 {[%clk 0:02:14]} 18. Bc4 {[%clk 0:02:19]}  Bxc4+ {[%clk 0:01:34]} 19. Rxc4 {[%clk 0:02:16]}  Rfd8 {[%clk 0:01:32]} 20. g3 {[%clk 0:02:03]}  a5 {[%clk 0:01:23]} 21. a3 {[%clk 0:01:55]}  Bd6 {[%clk 0:01:21]} 22. Nf3 {[%clk 0:01:54]}  Rac8 {[%clk 0:01:21]} 23. Rxc8 {[%clk 0:01:36]}  Rxc8 {[%clk 0:01:22]} 24. Kg2 {[%clk 0:01:25]}  b5 {[%clk 0:01:14]} 25. Rd1 {[%clk 0:01:23]}  Bf8 {[%clk 0:01:11]} 26. Nd4 {[%clk 0:01:22]}  Rc5 {[%clk 0:00:49]} 27. Kf3 {[%clk 0:01:21]}  a4 {[%clk 0:00:49]} 28. Ke2 {[%clk 0:01:19]}  g6 {[%clk 0:00:45]} 29. Kd3 {[%clk 0:01:16]}  Rd5 {[%clk 0:00:43]} 30. Rd2 {[%clk 0:01:14]}  b4 {[%clk 0:00:41]} 31. axb4 {[%clk 0:01:08]}  Bxb4 {[%clk 0:00:41]} 32. Rc2 {[%clk 0:01:08]}  Be7 {[%clk 0:00:31]} 33. Rc7 {[%clk 0:01:03]}  Kf8 {[%clk 0:00:28]} 34. Ra7 {[%clk 0:01:01]}  Rh5 {[%clk 0:00:21]} 35. h4 {[%clk 0:01:00]}  Rd5 {[%clk 0:00:13]} 36. Rxa4 {[%clk 0:00:59]}  h5 {[%clk 0:00:13]} 37. b4 {[%clk 0:00:56]}  g5 {[%clk 0:00:11]} 38. Kc4 {[%clk 0:00:51]}  Rd8 {[%clk 0:00:10]} 39. hxg5 {[%clk 0:00:49]}  Bxg5 {[%clk 0:00:10]} 40. Ra5 {[%clk 0:00:48]}  Be7 {[%clk 0:00:06]} 41. Rxh5 {[%clk 0:00:47]}  Rc8+ {[%clk 0:00:07]} 42. Kb3 {[%clk 0:00:44]}  Bf6 {[%clk 0:00:07]} 43. Rc5 {[%clk 0:00:38]}  Ra8 {[%clk 0:00:06]} 44. b5 {[%clk 0:00:38]}  Ra1 {[%clk 0:00:05]} 45. Rc2 {[%clk 0:00:35]}  Bd8 {[%clk 0:00:02]} 46. Rc8 {[%clk 0:00:32]}  Ke7 {[%clk 0:00:02]} 47. Nc6+ {[%clk 0:00:32]}  Kd7 {[%clk 0:00:03]} 48. Rxd8+ {[%clk 0:00:33]}  Kc7 {[%clk 0:00:04]} 49. Rd5 {[%clk 0:00:31]} 1-0


[Site "https://www.chess.com"]

[Event "Titled Tuesday Blitz January 10 Early 2023"]
[White "Lewtak, Damian"]
[Black "Ter-Sahakyan, Samvel"]
[WhiteFideId "1141724"]
[BlackFideId "13302531"]
[WhiteElo "2381"]
[BlackElo "2617"]
[Result "0-1"]
[Round "06"]
[TimeControl "180+2"]
[Date "2023.01.10"]
[WhiteClock "0:02:37"]
[BlackClock "0:02:32"]

1. e4 {[%clk 0:03:00]}  c5 {[%clk 0:02:56]} 2. Nf3 {[%clk 0:03:01]}  e6 {[%clk 0:02:57]} 3. d3 {[%clk 0:03:01]}  Nc6 {[%clk 0:02:56]} 4. Nbd2 {[%clk 0:03:01]}  g6 {[%clk 0:02:54]} 5. Be2 {[%clk 0:03:01]}  Bg7 {[%clk 0:02:54]} 6. O-O {[%clk 0:03:02]}  d5 {[%clk 0:02:52]} 7. exd5 {[%clk 0:03:00]}  exd5 {[%clk 0:02:52]} 8. Nb3 {[%clk 0:03:00]}  b6 {[%clk 0:02:48]} 9. Bg5 {[%clk 0:02:53]}  Nge7 {[%clk 0:02:45]} 10. c3 {[%clk 0:02:48]}  h6 {[%clk 0:02:45]} 11. Bf4 {[%clk 0:02:45]}  O-O {[%clk 0:02:45]} 12. Qc1 {[%clk 0:02:44]}  g5 {[%clk 0:02:45]} 13. Bd2 {[%clk 0:02:43]}  Ng6 {[%clk 0:02:37]} 14. Re1 {[%clk 0:02:41]}  g4 {[%clk 0:02:36]} 15. Bxh6 {[%clk 0:02:37]}  gxf3 {[%clk 0:02:36]} 16. Bxf3 {[%clk 0:02:38]}  Nce5 {[%clk 0:02:32]} 17. Bxg7 {[%clk 0:02:36]}  Nxf3+ {[%clk 0:02:31]} 18. gxf3 {[%clk 0:02:37]}  Kxg7 {[%clk 0:02:32]} 0-1


[Site "https://www.chess.com"]

[Event "Titled Tuesday Blitz January 10 Early 2023"]
[White "Makarian, Rudik"]
[Black "Korchmar, Vasiliy"]
[WhiteFideId "44105681"]
[BlackFideId "24131750"]
[WhiteElo "2545"]
[BlackElo "2438"]
[Result "1-0"]
[Round "06"]
[TimeControl "180+2"]
[Date "2023.01.10"]
[WhiteClock "0:00:35"]
[BlackClock "0:00:16"]

1. d4 {[%clk 0:03:00]}  Nf6 {[%clk 0:02:58]} 2. c4 {[%clk 0:03:01]}  c6 {[%clk 0:02:58]} 3. Bf4 {[%clk 0:02:58]}  d5 {[%clk 0:02:58]} 4. e3 {[%clk 0:02:57]}  e6 {[%clk 0:02:54]} 5. Nc3 {[%clk 0:02:56]}  Nbd7 {[%clk 0:02:53]} 6. Nf3 {[%clk 0:02:56]}  Be7 {[%clk 0:02:54]} 7. cxd5 {[%clk 0:02:53]}  exd5 {[%clk 0:02:52]} 8. Bd3 {[%clk 0:02:53]}  Nf8 {[%clk 0:02:50]} 9. h3 {[%clk 0:02:53]}  Ne6 {[%clk 0:02:50]} 10. Bg3 {[%clk 0:02:51]}  g6 {[%clk 0:02:50]} 11. O-O {[%clk 0:02:49]}  Ng7 {[%clk 0:02:50]} 12. Rb1 {[%clk 0:02:47]}  a5 {[%clk 0:02:50]} 13. a3 {[%clk 0:02:48]}  Bf5 {[%clk 0:02:49]} 14. b4 {[%clk 0:02:48]}  axb4 {[%clk 0:02:48]} 15. axb4 {[%clk 0:02:49]}  Bxd3 {[%clk 0:02:48]} 16. Qxd3 {[%clk 0:02:49]}  Nf5 {[%clk 0:02:48]} 17. Be5 {[%clk 0:02:44]}  b5 {[%clk 0:02:47]} 18. g4 {[%clk 0:02:20]}  Nd6 {[%clk 0:02:46]} 19. g5 {[%clk 0:02:20]}  Nfe4 {[%clk 0:01:41]} 20. Bxh8 {[%clk 0:02:18]}  Ra3 {[%clk 0:01:41]} 21. Rfc1 {[%clk 0:02:12]}  Qd7 {[%clk 0:01:38]} 22. Kg2 {[%clk 0:01:52]}  Qf5 {[%clk 0:01:36]} 23. Be5 {[%clk 0:01:43]}  Nc4 {[%clk 0:01:28]} 24. Ra1 {[%clk 0:01:35]}  Ncd2 {[%clk 0:01:13]} 25. Qe2 {[%clk 0:00:52]}  Rxa1 {[%clk 0:00:27]} 26. Rxa1 {[%clk 0:00:51]}  Nxf3 {[%clk 0:00:27]} 27. Qxf3 {[%clk 0:00:51]}  Qxg5+ {[%clk 0:00:27]} 28. Kh2 {[%clk 0:00:44]}  Nxc3 {[%clk 0:00:27]} 29. Ra8+ {[%clk 0:00:45]}  Kd7 {[%clk 0:00:24]} 30. Qxf7 {[%clk 0:00:45]}  Ne2 {[%clk 0:00:16]} 31. Ra7+ {[%clk 0:00:35]}  Kc8 {[%clk 0:00:16]} 32. Qe8+ {[%clk 0:00:35]} 1-0


[Site "https://www.chess.com"]

[Event "Titled Tuesday Blitz January 10 Early 2023"]
[White "Khumalo, Keith"]
[Black "Shipov, Sergei"]
[WhiteFideId "14319470"]
[BlackFideId "4113624"]
[WhiteElo "2099"]
[BlackElo "2541"]
[Result "0-1"]
[Round "06"]
[TimeControl "180+2"]
[Date "2023.01.10"]
[WhiteClock "0:01:03"]
[BlackClock "0:00:41"]

1. d4 {[%clk 0:03:00]}  d5 {[%clk 0:02:59]} 2. Nf3 {[%clk 0:02:59]}  e6 {[%clk 0:02:59]} 3. g3 {[%clk 0:02:59]}  b5 {[%clk 0:02:58]} 4. Bg2 {[%clk 0:03:00]}  Bb7 {[%clk 0:02:59]} 5. O-O {[%clk 0:03:01]}  Nf6 {[%clk 0:02:59]} 6. Nc3 {[%clk 0:03:01]}  a6 {[%clk 0:02:59]} 7. Ne5 {[%clk 0:02:58]}  c5 {[%clk 0:02:58]} 8. e4 {[%clk 0:02:51]}  dxe4 {[%clk 0:02:53]} 9. dxc5 {[%clk 0:02:49]}  Qxd1 {[%clk 0:02:51]} 10. Rxd1 {[%clk 0:02:50]}  Bxc5 {[%clk 0:02:52]} 11. Bg5 {[%clk 0:02:42]}  Be7 {[%clk 0:02:02]} 12. Bxf6 {[%clk 0:02:30]}  gxf6 {[%clk 0:02:00]} 13. Ng4 {[%clk 0:02:00]}  f5 {[%clk 0:01:53]} 14. Ne3 {[%clk 0:02:00]}  Nd7 {[%clk 0:01:50]} 15. a4 {[%clk 0:02:00]}  b4 {[%clk 0:01:49]} 16. Ne2 {[%clk 0:02:00]}  Ne5 {[%clk 0:01:48]} 17. Nd4 {[%clk 0:01:52]}  h5 {[%clk 0:01:41]} 18. h4 {[%clk 0:01:47]}  Rc8 {[%clk 0:01:40]} 19. Bf1 {[%clk 0:01:46]}  Kf8 {[%clk 0:01:34]} 20. Nb3 {[%clk 0:01:39]}  Nf3+ {[%clk 0:01:14]} 21. Kh1 {[%clk 0:01:35]}  f4 {[%clk 0:01:14]} 22. Nc4 {[%clk 0:01:32]}  fxg3 {[%clk 0:01:05]} 23. fxg3 {[%clk 0:01:29]}  Rg8 {[%clk 0:01:05]} 24. Rd7 {[%clk 0:01:23]}  Rxg3 {[%clk 0:01:04]} 25. Bg2 {[%clk 0:01:24]}  Bc6 {[%clk 0:00:44]} 26. Rdd1 {[%clk 0:01:20]}  Nxh4 {[%clk 0:00:44]} 27. Rd2 {[%clk 0:01:03]}  Nxg2 {[%clk 0:00:41]} 0-1


[Site "https://www.chess.com"]